bitfinex/quotes_ETHUSD_20220227
["timestamp","ask_amount","ask_price","bid_price","bid_amount"]
[1645931008745,0.00566169,2715.7,2715.3,0.3694]
[1645931008943,4.3264,2716.7,2715.5,0.3694]
[1645931009144,4.3264,2716.7,2715.7,0.3694]
[1645931009346,4.3264,2716.7,2715.8,0.533]
[1645931009540,4.3264,2716.7,2716.2,0.5]
[1645931009775,4.3264,2716.7,2716.2,1.82448563]
[1645931010176,4.3264,2716.7,2716.2,2.12448563]
[1645931010375,1.0,2716.7,2716.2,2.12448563]
[1645931010576,1.0,2716.7,2716.2,1.82448563]
[1645931010776,1.0,2716.7,2716.2,2.12448563]
[1645931010777,0.95,2716.7,2716.2,2.12448563]
[1645931011276,3.5694,2717.2,2716.2,2.12448563]
[1645931011885,11.26,2717.1,2716.3,0.533]
[1645931012276,3.5694,2717.2,2716.3,0.533]
[1645931012475,3.57205092,2717.2,2716.3,0.533]
[1645931012876,11.26,2717.1,2716.3,0.533]
[1645931013276,0.00566165,2716.9,2716.3,0.533]
[1645931014223,11.26265092,2717.1,2716.3,0.533]
[1645931014621,3.91975618,2717.2,2716.3,0.533]
[1645931015223,15.17975618,2717.2,2716.3,0.533]
[1645931017027,15.17975618,2717.2,2716.6,0.00156108]
[1645931017978,14.81035618,2717.2,2716.2,2.12448563]
[1645931018178,14.81035618,2717.2,2716.8,0.0052033]
[1645931018179,14.81601732,2717.2,2716.8,0.0052033]
[1645931018578,15.18541732,2717.2,2716.8,0.0052033]
[1645931018978,15.17975618,2717.2,2716.2,0.8]
[1645931019282,0.00263976,2717.1,2716.2,1.1]
[1645931019479,11.26263976,2717.1,2716.9,0.00520311]
[1645931019682,0.00916601,2716.8,2716.2,0.8]
[1645931019879,0.00916601,2716.8,2716.3,0.533]
[1645931021921,0.00916601,2716.8,2716.4,1.32821911]
[1645931022120,0.00916601,2716.8,2716.4,1.62821911]
[1645931023426,0.00916601,2716.8,2716.4,0.3]
[1645931023628,0.00916601,2716.8,2716.3,0.833]
[1645931024027,0.00916601,2716.8,2716.5,0.00519086]
[1645931024229,14.81601697,2717.2,2716.5,0.00519086]
[1645931024230,19.94722274,2717.2,2716.5,0.00519086]
[1645931024430,1.80808904,2716.6,2716.5,0.00519086]
[1645931024685,13.06808904,2716.6,2716.5,0.00519086]
[1645931025082,13.06808904,2716.6,2715.8,0.25]
[1645931025283,11.6294,2716.1,2715.5,0.5]
[1645931025484,11.7766,2716.1,2715.5,0.5]
[1645931025681,11.6294,2716.1,2715.5,0.5]
[1645931025883,12.86112999,2716.1,2715.1,0.25]
[1645931026085,13.00832999,2716.1,2714.7,3.6472]
[1645931026287,13.00832999,2716.1,2715.0,0.5]
[1645931026485,16.25912999,2716.1,2715.0,0.5]
[1645931026687,16.11192999,2716.1,2715.5,0.00519278]
[1645931027788,14.8802,2716.1,2715.7,0.00519239]
[1645931027986,0.00262789,2716.0,2715.7,0.00519239]
[1645931028186,14.8802,2716.1,2715.7,0.00519239]
[1645931028623,15.0274,2716.1,2715.0,0.75]
[1645931028824,0.00262789,2716.0,2715.0,0.75]
[1645931029025,0.00262789,2716.0,2715.8,0.00441391]
[1645931029224,15.0274,2716.1,2715.8,0.00441391]
[1645931029827,14.658,2716.1,2715.8,0.00441391]
[1645931030035,14.5108,2716.1,2715.8,0.00441391]
[1645931030229,14.5108,2716.1,2715.8,0.00441383]
[1645931030630,11.6294,2715.9,2715.8,0.00441383]
[1645931031030,11.6294,2715.9,2715.0,0.75]
[1645931031429,11.6294,2715.9,2715.7,0.00441399]
[1645931032282,13.01396511,2715.9,2715.0,0.75]
[1645931032478,13.01396511,2715.9,2715.0,0.25]
[1645931032685,11.6294,2715.9,2715.7,0.00518425]
[1645931033581,11.6294,2715.9,2714.6,0.5]
[1645931033783,11.6294,2715.9,2715.7,0.00518425]
[1645931034181,12.86401215,2715.9,2715.7,0.00518425]
[1645931034380,11.6294,2715.9,2715.7,0.00518425]
[1645931034788,11.6294,2715.9,2714.7,0.1472]
[1645931034990,11.6294,2715.9,2715.7,0.00519239]
[1645931035791,11.6294,2715.9,2715.1,1.20154163]
[1645931036225,11.6294,2715.9,2715.7,0.00519239]
[1645931037030,11.6294,2715.9,2714.7,0.1472]
[1645931037231,11.26,2715.8,2714.7,5.1011]
[1645931037431,11.6294,2715.8,2715.7,0.00519239]
[1645931038235,11.6294,2715.8,2714.6,1.6472]
[1645931038430,11.6294,2715.8,2714.6,0.9472]
[1645931038632,11.6294,2715.8,2715.6,0.00519249]
[1645931039432,11.6294,2715.8,2714.6,1.1472]
[1645931039682,11.6294,2715.8,2714.8,1.39091768]
[1645931040278,11.6294,2715.8,2714.7,0.3]
[1645931040677,11.6294,2715.8,2714.5,2.2802]
[1645931040877,11.6294,2715.8,2714.5,0.9802]
[1645931041078,11.6294,2715.8,2714.5,4.8496]
[1645931041079,11.26,2715.8,2714.5,4.8496]
[1645931041278,11.26,2715.8,2714.5,5.3186]
[1645931041578,11.26,2715.8,2714.6,1.28280629]
[1645931041779,11.6294,2715.8,2714.7,0.6802]
[1645931042179,11.6294,2715.8,2714.7,0.533]
[1645931043425,11.6294,2715.8,2715.1,0.00518046]
[1645931043631,1.3393457,2715.9,2715.1,0.00518046]
[1645931043632,5.0,2715.5,2715.1,0.00518046]
[1645931043826,13.18579013,2715.4,2715.1,0.00518046]
[1645931044031,16.6294,2715.2,2715.1,0.00518046]
[1645931044230,16.6294,2715.2,2714.2,0.5]
[1645931044231,11.27430991,2715.0,2714.2,0.29358046]
[1645931044430,12.53309682,2714.8,2714.2,0.29358046]
[1645931044832,12.53309682,2714.8,2713.9,2.9265]
[1645931045032,12.53309682,2714.8,2713.8,7.36]
[1645931045232,12.53309682,2714.8,2713.9,0.2928]
[1645931045832,0.16472602,2714.9,2713.9,0.2928]
[1645931046034,11.64370991,2715.0,2713.6,6.1336]
[1645931046236,11.6294,2714.8,2713.6,7.1336]
[1645931046535,11.6294,2714.8,2713.6,7.1836]
[1645931046536,11.26,2714.6,2713.6,7.1836]
[1645931046736,3.36631676,2714.7,2713.6,2.5955]
[1645931046737,11.6294,2714.4,2713.6,2.5955]
[1645931046935,11.26,2714.2,2713.6,2.5955]
[1645931047188,11.26,2714.2,2713.6,1.1339]
[1645931047378,11.26,2714.2,2713.6,1.0]
[1645931047580,11.26,2714.2,2713.5,0.1473]
[1645931047880,11.6294,2714.2,2713.5,0.1473]
[1645931048283,11.6294,2714.2,2713.8,0.00517008]
[1645931049079,11.6294,2714.2,2713.5,0.1473]
[1645931049484,11.6294,2714.2,2713.9,0.00516989]
[1645931049685,11.26,2714.1,2713.9,0.00516989]
[1645931050286,11.26,2714.1,2713.5,0.1473]
[1645931050486,11.26,2714.1,2713.9,0.00516989]
[1645931051134,11.26,2714.1,2714.0,1.0]
[1645931051332,11.26,2714.1,2713.9,0.00516989]
[1645931051529,11.26,2714.1,2713.6,0.833]
[1645931051929,11.26,2714.1,2713.9,0.0051698]
[1645931052728,11.26,2714.1,2713.6,0.833]
[1645931053128,11.26,2714.1,2713.9,0.00516989]
[1645931053928,11.26,2714.1,2713.6,0.833]
[1645931054128,11.26,2714.1,2713.9,0.00516989]
[1645931055189,11.26,2714.1,2713.6,0.833]
[1645931055392,11.26,2714.1,2713.9,0.00516989]
[1645931055992,11.26,2714.1,2714.0,0.2928]
[1645931057596,11.26,2714.1,2713.5,0.1473]
[1645931057597,11.6294,2714.1,2713.5,0.1473]
[1645931057795,11.6294,2714.1,2713.9,0.0051698]
[1645931057994,1.11111421,2714.0,2713.9,0.0051698]
[1645931058195,12.74051421,2714.0,2713.9,0.0051698]
[1645931058429,13.74051421,2714.0,2713.9,0.0051698]
[1645931058630,13.88771421,2714.0,2713.9,0.0051698]
[1645931058835,13.88771421,2714.0,2712.9,2.8517]
[1645931058836,12.88771421,2714.0,2712.9,2.8517]
[1645931059031,0.1474,2713.9,2713.8,0.00516999]
[1645931059839,12.88771421,2714.0,2712.9,3.8517]
[1645931060039,1.01300285,2713.5,2712.9,3.8517]
[1645931060239,11.26,2713.4,2712.9,1.0]
[1645931060441,0.19174717,2713.9,2713.2,1.0]
[1645931060642,11.26,2714.1,2713.3,0.533]
[1645931061041,11.26,2714.1,2713.3,0.833]
[1645931061544,11.26,2714.1,2713.6,0.00517046]
[1645931061740,11.26,2714.1,2713.6,0.53817046]
[1645931062041,11.26,2714.1,2713.6,0.83817046]
[1645931062275,11.26,2714.4,2713.6,0.83817046]
[1645931062678,11.26,2714.4,2713.7,0.00517018]
[1645931063273,11.6294,2714.4,2713.7,0.00517018]
[1645931063474,11.6294,2714.4,2713.5,0.533]
[1645931063874,11.6294,2714.4,2713.9,0.0045882]
[1645931064677,11.26,2714.4,2713.5,0.533]
[1645931064877,11.6294,2714.4,2713.5,0.533]
[1645931065079,11.6294,2714.4,2714.0,0.00458803]
[1645931065278,11.6294,2714.4,2713.5,0.41228803]
[1645931067331,2.17289827,2714.5,2713.8,0.00141335]
[1645931067332,11.43289827,2714.5,2713.8,0.00141335]
[1645931067530,11.26,2714.3,2713.8,0.00141335]
[1645931067732,11.26,2714.3,2713.8,0.53441335]
[1645931068330,11.26,2714.3,2713.8,0.27631335]
[1645931068530,11.26,2714.5,2713.8,0.27631335]
[1645931068731,11.26,2714.5,2713.9,0.00141332]
[1645931069683,11.26,2714.5,2713.8,0.27631335]
[1645931070881,0.16449507,2714.6,2713.8,0.27631335]
[1645931071082,1.16150991,2715.0,2713.9,0.54948108]
[1645931071083,0.01430991,2715.0,2713.9,0.54948108]
[1645931071286,0.01430991,2715.0,2714.1,0.3694]
[1645931071481,0.01430991,2715.0,2714.6,1.0]
[1645931071680,0.01430991,2715.0,2714.8,0.5]
[1645931071884,0.01430991,2715.0,2714.8,1.033]
[1645931072280,0.01430991,2715.0,2714.9,1.204746]
[1645931072479,0.01430991,2715.0,2714.9,1.737746]
[1645931072683,0.01430991,2715.0,2714.9,5.237746]
[1645931072882,0.01430991,2715.0,2714.9,1.737746]
[1645931073080,0.01430991,2715.0,2714.9,2.737746]
[1645931073282,0.01430991,2715.0,2714.9,1.737746]
[1645931073530,0.01430991,2715.0,2714.9,2.737746]
[1645931073731,0.01430991,2715.0,2714.9,1.737746]
[1645931073931,0.01430991,2715.0,2714.9,2.737746]
[1645931074132,0.01430991,2715.0,2714.9,6.537746]
[1645931074336,0.00262789,2716.2,2715.0,0.92074]
[1645931074637,0.02131828,2715.5,2715.1,5.32312]
[1645931074834,0.02131828,2715.5,2715.1,5.62312]
[1645931075035,0.02131828,2715.5,2715.1,6.92312]
[1645931075234,0.02131828,2715.5,2715.2,0.5]
[1645931075434,0.02131828,2715.5,2715.3,0.533]
[1645931075635,0.00262789,2716.1,2715.3,0.833]
[1645931075836,0.00530772,2715.6,2715.3,0.833]
[1645931076839,0.00262789,2716.1,2715.3,0.833]
[1645931077040,0.00530785,2715.6,2715.3,0.833]
[1645931077485,0.00530785,2715.6,2715.3,0.533]
[1645931077682,0.00530785,2715.6,2715.2,0.5]
[1645931077881,0.00530785,2715.6,2715.1,0.3]
[1645931078082,11.6294,2716.0,2715.1,0.3]
[1645931078382,11.6294,2716.0,2715.0,0.533]
[1645931078383,0.00530785,2715.6,2715.0,0.533]
[1645931079281,11.26,2715.8,2715.0,0.533]
[1645931079482,0.00536138,2715.6,2715.0,0.533]
[1645931080488,11.26,2715.9,2715.0,0.533]
[1645931080689,0.00536138,2715.6,2715.0,0.533]
[1645931081545,11.26,2715.8,2715.0,0.533]
[1645931081745,11.26,2715.9,2715.0,0.533]
[1645931081945,0.00536138,2715.6,2715.0,0.533]
[1645931082745,11.26,2715.8,2715.0,0.533]
[1645931083146,0.00529734,2715.6,2715.2,0.5]
[1645931083348,0.00529734,2715.6,2715.3,0.533]
[1645931083746,0.00529734,2715.6,2715.3,0.833]
[1645931083946,0.00262789,2716.1,2715.3,0.833]
[1645931084150,1.55606271,2716.1,2715.5,1.23163868]
[1645931084350,1.55606271,2716.1,2715.3,0.833]
[1645931084351,0.00529754,2715.6,2715.3,0.833]
[1645931085193,0.00262789,2716.1,2715.3,0.833]
[1645931085383,14.6094,2716.2,2715.5,1.22328826]
[1645931085582,0.00529754,2715.6,2715.3,0.833]
[1645931085784,0.00529754,2715.6,2715.4,0.3]
[1645931086082,0.00529754,2715.6,2715.3,0.833]
[1645931086485,0.00262789,2716.1,2715.3,0.833]
[1645931086682,0.00530179,2715.6,2715.3,2.05764393]
[1645931086886,0.00530179,2715.6,2715.3,0.833]
[1645931087686,0.00262789,2716.1,2715.3,0.833]
[1645931087882,0.00530182,2715.6,2715.4,1.36837775]
[1645931088284,0.00530182,2715.6,2715.4,1.66837775]
[1645931088526,0.00530182,2715.6,2715.4,0.833]
[1645931088727,0.02120408,2716.0,2715.4,0.833]
[1645931088927,0.00262789,2716.1,2715.4,0.833]
[1645931089128,0.00530179,2715.6,2715.4,0.833]
[1645931089528,0.00530179,2715.6,2715.5,1.06314945]
[1645931089933,0.00262789,2716.1,2715.5,1.06314945]
[1645931090135,3.35202789,2716.2,2715.5,1.06314945]
[1645931090339,0.00530147,2715.7,2715.5,1.06314945]
[1645931091137,0.0212027,2716.1,2715.5,1.06314945]
[1645931091338,3.3494,2716.2,2715.5,1.06314945]
[1645931091536,0.00530144,2715.7,2715.5,1.06314945]
[1645931092391,0.00262789,2716.1,2715.5,1.06314945]
[1645931092593,0.00530144,2715.7,2715.5,1.06314945]
[1645931092995,0.00530144,2715.7,2715.4,1.133]
[1645931093497,0.00530144,2715.7,2715.5,4.04948108]
[1645931093694,0.00262789,2716.4,2715.7,0.3694]
[1645931093896,0.00262789,2716.7,2715.8,4.033]
[1645931094093,1.55839316,2717.0,2716.2,1.10210842]
[1645931094299,1.55839316,2717.0,2716.2,0.533]
[1645931094701,1.55839316,2717.0,2716.2,0.833]
[1645931095102,0.00530089,2716.7,2716.2,0.833]
[1645931096126,0.00262789,2717.0,2716.2,0.833]
[1645931096329,0.00530097,2716.6,2716.2,0.833]
[1645931096728,0.00449203,2716.6,2716.3,3.8694]
[1645931096930,0.00449203,2716.6,2716.4,0.9024]
[1645931097126,0.00449203,2716.6,2716.5,0.533]
[1645931097326,0.06,2717.4,2716.5,0.533]
[1645931097727,1.55547789,2717.3,2716.5,0.533]
[1645931097929,1.55547789,2717.3,2716.5,0.833]
[1645931098328,0.06,2717.4,2716.5,0.833]
[1645931098528,1.55549118,2717.3,2716.5,0.833]
[1645931098830,12.83829457,2717.2,2716.5,0.833]
[1645931099029,12.84092246,2717.2,2716.5,0.3]
[1645931099228,11.6294,2717.2,2716.5,0.3]
[1645931099429,0.00262789,2717.3,2716.5,0.3]
[1645931099701,0.00262789,2717.3,2716.2,7.761]
[1645931099702,11.26,2717.2,2716.2,7.761]
[1645931099893,11.26,2717.2,2716.2,4.6376]
[1645931099894,11.26,2717.0,2716.2,4.6376]
[1645931100306,0.00262789,2717.1,2716.2,4.6376]
[1645931100698,1.55816201,2717.3,2716.2,4.6376]
[1645931100897,11.26,2717.2,2716.2,4.6376]
[1645931101098,0.00262789,2717.1,2716.2,4.6376]
[1645931101299,0.00566404,2716.8,2716.5,0.5]
[1645931101898,0.00566404,2716.8,2716.5,0.8]
[1645931102299,0.02528066,2717.2,2716.5,0.8]
[1645931102498,0.00566404,2716.8,2716.5,0.8]
[1645931103305,11.63202789,2717.2,2716.5,0.8]
[1645931103531,0.00566404,2716.8,2716.5,0.8]
[1645931104533,0.00262789,2717.1,2716.5,0.8]
[1645931104738,0.00566404,2716.8,2716.5,0.8]
[1645931105741,0.00262789,2717.1,2716.5,0.8]
[1645931105944,0.00566404,2716.8,2716.5,0.8]
[1645931106841,0.00262789,2717.1,2716.5,0.8]
[1645931107044,0.00566404,2716.8,2716.5,0.8]
[1645931107285,0.00566404,2716.8,2716.6,0.5]
[1645931108089,0.00262789,2717.1,2716.6,0.5]
[1645931108287,11.6294,2717.2,2716.6,0.5]
[1645931108888,0.00566401,2716.8,2716.6,0.5]
[1645931109290,0.00262789,2717.1,2716.6,0.5]
[1645931109488,0.00566401,2716.8,2716.6,0.5]
[1645931110493,0.00262789,2717.1,2716.6,0.5]
[1645931110694,11.26,2717.0,2716.6,0.5]
[1645931110941,0.00566401,2716.8,2716.6,0.5]
[1645931111941,0.01132802,2716.8,2716.6,0.5]
[1645931112141,0.00566401,2716.8,2716.6,0.5]
[1645931112942,0.00262789,2717.1,2716.6,0.5]
[1645931113143,0.00500771,2716.8,2716.6,0.5]
[1645931114243,11.26,2717.0,2716.6,0.5]
[1645931114444,0.00500771,2716.8,2716.6,0.5]
[1645931115286,11.26,2717.0,2716.6,0.5]
[1645931115487,0.00500771,2716.8,2716.6,0.5]
[1645931117092,0.00500771,2716.8,2716.6,2.19446899]
[1645931117692,0.00262789,2717.2,2716.6,2.19446899]
[1645931117892,1.55550649,2717.2,2716.6,2.19446899]
[1645931118094,0.00508293,2716.8,2716.6,1.033]
[1645931119040,0.00262789,2717.3,2716.6,0.5]
[1645931119234,0.00508293,2716.8,2716.6,0.5]
[1645931120037,0.00262789,2717.1,2716.6,0.5]
[1645931120240,11.26,2717.0,2716.6,0.5]
[1645931120439,0.00508293,2716.8,2716.6,0.5]
[1645931121040,0.00508293,2716.8,2716.2,4.1046]
[1645931121240,11.63202789,2717.1,2716.8,0.00148062]
[1645931121441,1.55546031,2717.0,2716.8,0.00148062]
[1645931121941,1.55546031,2717.0,2716.3,0.533]
[1645931121942,16.1294,2716.9,2716.3,0.533]
[1645931122197,16.1294,2716.9,2715.8,0.25]
[1645931122198,0.3694,2716.7,2715.8,0.25]
[1645931122489,0.3694,2716.7,2715.1,0.3972]
[1645931122490,11.6294,2716.5,2715.1,0.3972]
[1645931122685,5.20266031,2716.6,2715.1,0.3972]
[1645931122686,11.6294,2716.3,2715.1,0.05]
[1645931122886,11.6294,2716.1,2715.0,2.62679322]
[1645931123089,11.6294,2715.7,2715.0,2.62679322]
[1645931123285,11.6294,2715.5,2715.2,0.3136]
[1645931123685,11.6294,2715.5,2715.0,2.62679322]
[1645931124087,12.7766,2715.5,2715.0,2.62679322]
[1645931124291,12.4072,2715.5,2715.0,2.62679322]
[1645931124492,0.00507319,2715.6,2715.0,2.62679322]
[1645931124694,0.00507319,2715.6,2715.0,3.15979322]
[1645931124892,1.0,2716.0,2715.0,3.15979322]
[1645931125090,1.0,2716.0,2715.4,1.10314733]
[1645931125295,1.0,2716.0,2715.4,0.64224733]
[1645931125296,0.0050747,2715.6,2715.4,0.64224733]
[1645931125490,0.0050747,2715.6,2715.0,0.533]
[1645931125692,0.0050747,2715.6,2715.0,0.833]
[1645931126138,12.26,2716.0,2715.0,0.833]
[1645931126338,0.0050747,2715.6,2715.0,0.833]
[1645931126540,0.0050747,2715.6,2715.4,1.21543381]
[1645931127341,12.4417,2716.2,2715.4,1.21543381]
[1645931127744,0.00507485,2715.6,2715.4,1.21543381]
[1645931128240,0.00507485,2715.6,2715.4,2.11783381]
[1645931128441,0.00507485,2715.6,2715.4,1.65693381]
[1645931128640,0.00262789,2716.6,2715.4,1.28753381]
[1645931128841,0.00507466,2715.6,2715.4,1.28753381]
[1645931129445,0.00507466,2715.6,2715.4,0.533]
[1645931129694,11.26,2716.2,2715.4,0.533]
[1645931129888,11.26,2716.0,2715.3,0.3128]
[1645931130089,0.00507466,2715.6,2715.3,0.3128]
[1645931130990,11.26,2715.8,2715.3,0.3128]
[1645931131189,0.00507469,2715.6,2715.3,0.3128]
[1645931131388,0.00507469,2715.6,2715.0,2.7713]
[1645931131589,0.00507469,2715.6,2715.0,1.7713]
[1645931131890,0.00507469,2715.6,2715.0,2.7713]
[1645931132095,14.76,2715.9,2715.0,1.7713]
[1645931132292,14.76,2715.9,2715.0,2.7713]
[1645931132491,0.00507455,2715.6,2715.0,1.7713]
[1645931132691,0.00507455,2715.6,2715.0,2.7713]
[1645931132890,0.00507455,2715.6,2715.0,1.7713]
[1645931133092,0.00507455,2715.6,2715.0,2.7713]
[1645931133295,0.00507455,2715.6,2715.0,1.7713]
[1645931133735,0.00507455,2715.6,2715.0,3.20792056]
[1645931134136,0.00507455,2715.6,2715.0,4.20792056]
[1645931134338,0.00507455,2715.6,2715.0,4.13022056]
[1645931134535,0.02029612,2715.8,2715.0,4.05602056]
[1645931134741,0.00507455,2715.6,2715.0,4.05602056]
[1645931135743,11.26,2715.8,2715.0,4.05602056]
[1645931135942,0.00507455,2715.6,2715.0,2.6194]
[1645931136142,0.00507455,2715.6,2715.0,2.9194]
[1645931136741,11.08537067,2715.8,2715.0,2.9194]
[1645931136942,11.06507455,2715.9,2715.1,1.31057178]
[1645931137190,0.00507455,2715.6,2715.1,1.31057178]
[1645931138081,0.02029612,2715.8,2715.2,0.533]
[1645931138281,11.7766,2716.5,2715.7,1.35287078]
[1645931138480,11.26,2716.3,2715.2,0.533]
[1645931138680,16.46313594,2716.2,2715.2,0.533]
[1645931138880,12.81593594,2716.1,2715.2,0.533]
[1645931139081,11.26,2716.1,2715.2,0.533]
[1645931139280,1.296,2716.3,2715.2,0.533]
[1645931139481,12.8159154,2716.2,2715.4,1.0659649]
[1645931139686,0.00507462,2715.8,2715.4,1.0659649]
[1645931140488,11.26,2716.2,2715.4,1.0659649]
[1645931140935,0.00507465,2715.7,2715.4,1.0659649]
[1645931141938,0.01014923,2715.7,2715.4,1.0659649]
[1645931142140,0.00507458,2715.7,2715.4,2.2683649]
[1645931142341,0.00507458,2715.7,2715.4,2.44844598]
[1645931142939,0.00262789,2716.6,2715.4,2.44844598]
[1645931143140,1.55830131,2716.6,2716.3,1.34462995]
[1645931143341,1.55830131,2716.6,2716.2,0.3]
[1645931143342,1.55567342,2716.6,2716.2,0.3]
[1645931143538,1.55830131,2716.6,2715.9,0.533]
[1645931143738,1.55567342,2716.6,2715.9,0.833]
[1645931143945,0.69558247,2718.2,2716.5,11.6788571]
[1645931144141,3.10645702,2719.0,2718.1,6.666]
[1645931144142,0.69541758,2719.0,2718.1,6.666]
[1645931144346,1.0,2720.0,2718.9,6.666]
[1645931144347,0.92722344,2719.2,2718.9,6.666]
[1645931144541,0.69541758,2720.0,2719.0,3.5]
[1645931144797,1.09032133,2720.1,2719.1,1.0]
[1645931145005,0.01854451,2720.2,2719.2,3.5]
[1645931145201,3.47247431,2720.3,2719.6,6.666]
[1645931145396,0.05286338,2720.1,2719.8,0.2]
[1645931145596,0.16400314,2721.1,2720.2,0.3694]
[1645931145796,0.69541758,2721.5,2720.0,6.666]
[1645931145998,0.69541758,2721.7,2720.9,6.666]
[1645931146194,0.69541758,2721.7,2720.1,0.1469]
[1645931146195,4.19541758,2721.6,2721.0,0.533]
[1645931146397,0.69541758,2721.4,2721.0,0.533]
[1645931146595,3.5,2721.3,2721.1,0.533]
[1645931146793,3.5,2721.3,2720.3,0.25]
[1645931146794,5.0,2721.3,2720.3,0.25]
[1645931146993,5.0,2721.3,2719.8,7.166]
[1645931146994,5.0,2721.1,2719.8,0.533]
[1645931147196,5.0,2720.9,2719.5,0.533]
[1645931147394,5.0,2720.9,2718.8,2.7604]
[1645931147395,5.0,2720.3,2718.8,4.033]
[1645931147594,11.26,2720.0,2718.9,3.5]
[1645931147799,11.26,2720.0,2718.2,14.94367472]
[1645931147800,11.26,2719.5,2718.2,14.94367472]
[1645931147996,16.26,2719.3,2718.2,14.94367472]
[1645931148195,11.26,2719.1,2718.2,14.94367472]
[1645931148439,0.15706086,2719.1,2718.2,7.3569]
[1645931148639,0.00261888,2719.0,2718.2,7.3569]
[1645931148836,1.36524631,2719.2,2718.3,0.533]
[1645931148837,0.00261888,2719.1,2718.3,0.533]
[1645931149036,1.36524631,2719.2,2718.3,0.533]
[1645931149236,0.00261888,2719.1,2718.3,0.533]
[1645931149437,1.32121583,2718.7,2718.3,0.533]
[1645931149638,0.00565371,2718.7,2718.3,0.533]
[1645931149843,0.02261144,2719.1,2718.5,1.28912]
[1645931150043,0.02261144,2719.1,2718.8,0.3694]
[1645931150242,0.02261144,2719.1,2718.9,0.9024]
[1645931150449,11.35971888,2720.5,2719.0,0.533]
[1645931150642,1.14898312,2720.2,2719.2,1.33657307]
[1645931150849,1.14898312,2720.2,2719.4,1.28882]
[1645931151144,1.14898312,2720.2,2719.5,0.533]
[1645931151744,1.14898312,2720.2,2719.0,3.57214303]
[1645931151745,0.00536359,2719.9,2719.2,0.533]
[1645931151945,0.00536359,2719.9,2719.1,0.3]
[1645931152386,0.00536359,2719.9,2719.0,2.57214303]
[1645931152784,11.26,2719.9,2719.0,2.57214303]
[1645931152988,0.00536373,2719.6,2719.0,2.57214303]
[1645931153185,1.24301038,2719.5,2719.0,2.57214303]
[1645931153585,11.26,2719.3,2719.0,2.57214303]
[1645931154793,11.26536385,2719.4,2719.0,2.57214303]
[1645931154994,14.76,2719.4,2718.5,0.25]
[1645931155196,14.76,2719.4,2718.0,0.04737]
[1645931155197,0.14970764,2719.3,2718.0,0.04737]
[1645931155394,0.14970764,2719.3,2718.0,2.53450828]
[1645931155395,11.41511325,2719.3,2718.0,2.53450828]
[1645931155695,11.26,2719.1,2718.0,2.53450828]
[1645931155932,11.26,2718.7,2718.0,2.53450828]
[1645931156132,1.03224654,2718.3,2718.0,2.53450828]
[1645931156334,1.03224654,2718.3,2718.2,8.3569]
[1645931158536,1.03224654,2718.3,2718.2,7.3569]
[1645931159037,0.0269956,2718.8,2718.2,7.3569]
[1645931159887,11.26260764,2719.1,2718.2,8.3569]
[1645931160089,1.25398487,2718.7,2718.2,8.3569]
[1645931160287,0.3694,2718.6,2718.2,7.3569]
[1645931160489,11.6294,2718.6,2718.2,7.3569]
[1645931160992,11.5294,2718.6,2718.3,0.5]
[1645931161187,11.5294,2718.6,2718.2,7.3569]
[1645931161389,11.5294,2718.6,2718.2,6.8962]
[1645931162990,11.6294,2718.6,2718.2,6.8962]
[1645931163189,0.3694,2718.6,2718.2,6.8962]
[1645931164438,0.3694,2718.6,2718.2,6.4355]
[1645931165642,12.68875846,2718.7,2718.6,0.1580877]
[1645931165643,12.88338487,2718.7,2718.6,0.1580877]
[1645931165842,1.62338487,2718.7,2718.6,0.1580877]
[1645931166245,12.88338487,2718.7,2718.6,0.1580877]
[1645931166443,0.00540004,2718.8,2718.6,0.1580877]
[1645931167497,0.00540049,2718.8,2718.2,7.1328877]
[1645931168099,1.32293039,2718.4,2718.2,7.1328877]
[1645931168299,0.16416699,2719.2,2718.2,7.1328877]
[1645931168496,11.7765,2719.4,2718.2,7.1328877]
[1645931168497,0.00540019,2718.8,2718.2,7.1328877]
[1645931169600,1.09118866,2718.7,2718.2,7.1328877]
[1645931170503,1.09118866,2718.7,2718.2,6.6721877]
[1645931173450,12.35118866,2718.7,2718.2,6.6721877]
[1645931173654,12.35118866,2718.7,2718.2,5.6721877]
[1645931173655,11.6294,2718.6,2718.2,5.6721877]
[1645931173852,11.26,2718.3,2718.2,5.6721877]
[1645931174888,11.9294,2718.3,2717.7,0.25]
[1645931175091,11.9294,2718.3,2716.6,5.516]
[1645931175092,11.26,2717.9,2716.6,1.516]
[1645931175291,11.26,2717.9,2716.3,6.9902]
[1645931175292,11.26,2717.9,2717.0,0.5]
[1645931175490,11.63200764,2717.9,2717.0,0.5]
[1645931175689,0.3694,2717.7,2717.0,0.5]
[1645931175891,11.6294,2717.7,2717.0,0.5]
[1645931176088,1.02021133,2717.2,2717.0,0.5]
[1645931177291,1.14980764,2717.9,2717.0,0.5]
[1645931177489,1.00260764,2717.9,2717.0,0.5]
[1645931177888,12.26260764,2717.9,2717.0,0.5]
[1645931178289,1.00260764,2717.9,2717.0,0.5]
[1645931178545,0.00260764,2717.9,2717.0,0.5]
[1645931179350,0.00260764,2718.1,2717.3,1.0826407]
[1645931179648,3.0985,2718.2,2717.4,0.28997669]
[1645931179848,0.00260764,2718.1,2717.4,0.28997669]
[1645931180048,3.0985,2718.2,2717.4,0.28997669]
[1645931180251,3.0985,2718.2,2717.6,0.5]
[1645931180651,3.0985,2718.2,2717.4,0.533]
[1645931180852,3.0985,2718.2,2717.5,0.29053425]
[1645931181649,3.10110764,2718.2,2717.5,0.29053425]
[1645931182054,3.0985,2718.2,2717.5,0.29053425]
[1645931183094,3.0985,2718.2,2717.4,0.29053425]